bitfinex/quotes_ETHUSD_20250426
["timestamp","ask_amount","ask_price","bid_price","bid_amount"]
[1745631569409,5.51076302,1814.7,1814.3,5.51176754]
[1745631570128,5.51076302,1814.7,1814.0,5.51265334]
[1745631570129,0.7508,1814.5,1814.0,5.51265334]
[1745631570285,5.51169245,1814.4,1813.9,6.3167976]
[1745631570490,5.51179944,1814.3,1813.9,6.3167976]
[1745631570691,5.50181194,1814.3,1813.9,6.3167976]
[1745631571390,5.51169165,1814.4,1814.0,5.51267346]
[1745631571625,1.16300963,1814.5,1814.0,5.51245948]
[1745631571626,6.67432063,1814.5,1814.0,5.51245948]
[1745631571927,0.7508,1814.5,1814.2,5.51200103]
[1745631572923,0.7508,1814.5,1814.1,5.51220655]
[1745631573310,6.26196713,1814.5,1814.1,5.51220655]
[1745631573504,0.7508,1814.5,1814.2,5.5119314]
[1745631573900,0.7508,1814.5,1814.0,5.51252704]
[1745631573901,5.51165154,1814.4,1813.9,0.804]
[1745631574118,5.51164858,1814.4,1814.0,5.51251242]
[1745631574318,0.7694,1814.3,1814.0,5.51251242]
[1745631574999,0.7694,1814.3,1813.9,6.31678647]
[1745631575205,6.28121925,1814.3,1813.8,5.51306578]
[1745631575539,0.7694,1814.5,1814.1,5.51208282]
[1745631575701,0.7694,1814.5,1814.1,11.0242526]
[1745631575902,0.7694,1814.5,1814.1,5.51208282]
[1745631576103,6.28062242,1814.5,1814.1,5.51208282]
[1745631576807,0.7694,1814.5,1814.1,5.51216174]
[1745631577317,6.28059147,1814.5,1814.1,5.51216174]
[1745631578441,5.51146384,1814.4,1813.8,1.47462658]
[1745631578605,5.51199227,1814.3,1813.8,6.29912973]
[1745631578804,5.51199227,1814.3,1813.9,5.51283438]
[1745631579007,5.51199227,1814.3,1813.8,6.29901251]
[1745631579315,6.33611895,1814.1,1813.6,6.29962822]
[1745631579536,5.51267916,1814.0,1813.4,6.30025558]
[1745631579843,0.8237,1813.7,1813.4,6.14548496]
[1745631580442,6.33737505,1813.7,1813.4,0.63112938]
[1745631580678,0.8237,1813.7,1813.4,5.51420614]
[1745631581448,5.51404654,1813.6,1813.3,0.01103818]
[1745631581619,6.33820314,1813.4,1813.3,0.01103818]
[1745631581940,11.80370609,1813.4,1813.3,0.01103818]
[1745631582250,13.59696354,1813.4,1813.3,0.01103818]
[1745631582541,16.59696354,1813.4,1813.3,0.01103818]
[1745631582745,5.8777,1813.4,1813.3,0.01103818]
[1745631583044,5.054,1813.4,1813.3,0.01103818]
[1745631583745,5.054,1813.4,1813.3,5.52584543]
[1745631584309,5.054,1813.4,1813.3,6.31174543]
[1745631587677,5.054,1813.4,1813.3,5.52584543]
[1745631587886,5.054,1813.4,1813.3,0.01103818]
[1745631588377,5.055,1813.8,1813.6,5.51374672]
[1745631588947,5.055,1813.8,1813.7,5.513591]
[1745631590279,5.055,1814.2,1813.9,5.51269887]
[1745631590445,5.055,1814.2,1814.0,5.51266617]
[1745631590643,5.055,1814.2,1813.6,0.8215]
[1745631590871,0.5055,1814.1,1813.7,5.51328736]
[1745631591269,0.5055,1814.1,1813.5,5.51400803]
[1745631591270,6.30584666,1814.0,1813.5,5.51400803]
[1745631591585,5.51308434,1813.9,1813.4,5.51434798]
[1745631591786,5.055,1813.8,1813.5,5.5139442]
[1745631591995,5.5605,1813.8,1813.4,5.51435168]
[1745631592371,5.5605,1813.8,1813.4,5.5143195]
[1745631592683,5.5605,1813.8,1813.4,5.5142299]
[1745631593094,5.5605,1813.8,1813.4,5.51436782]
[1745631593701,5.5605,1813.8,1813.4,5.51450314]
[1745631593872,5.5605,1813.8,1813.5,5.5141959]
[1745631594072,5.5605,1813.8,1813.4,5.51427818]
[1745631594500,5.5605,1813.8,1813.5,5.51419264]
[1745631595196,5.5605,1813.8,1813.3,0.83253818]
[1745631595197,5.51393596,1813.6,1813.3,0.01103818]
[1745631595574,5.51450314,1813.4,1813.3,0.01103818]
[1745631595774,10.56950314,1813.4,1813.3,0.01103818]
[1745631596002,11.35630314,1813.4,1813.3,0.01103818]
[1745631596293,11.34997602,1813.4,1813.3,0.01103818]
[1745631596591,13.33976273,1813.4,1813.3,0.01103818]
[1745631598087,13.75654655,1813.4,1813.3,0.01103818]
[1745631601409,16.75654655,1813.4,1813.3,0.01103818]
[1745631602999,6.29500725,1813.3,1813.2,30.21509975]
[1745631603274,5.51705632,1812.6,1812.2,6.27275361]
[1745631603427,11.12607382,1812.5,1812.0,6.27323096]
[1745631603630,5.60870563,1812.5,1812.0,6.27323096]
[1745631603788,5.51767211,1812.4,1811.9,5.5190447]
[1745631604225,0.7802,1812.3,1811.9,5.51888196]
[1745631604529,0.7802,1812.3,1811.9,5.51886315]
[1745631604726,0.7802,1812.3,1811.8,5.51928307]
[1745631604883,0.7802,1812.3,1811.9,5.51893455]
[1745631605405,0.7802,1812.3,1811.9,5.51886938]
[1745631605582,5.057,1812.5,1812.0,5.51868774]
[1745631605782,5.057,1812.5,1812.0,0.7546]
[1745631605999,5.057,1812.5,1812.2,5.51800807]
[1745631606816,5.057,1812.5,1812.0,6.27317312]
[1745631607019,5.057,1812.5,1812.0,6.27311189]
[1745631607531,5.057,1812.5,1812.2,5.51808722]
[1745631607825,5.057,1812.5,1812.1,5.51830849]
[1745631608022,5.057,1812.5,1812.2,5.51813158]
[1745631608235,5.057,1812.5,1812.2,6.06982599]
[1745631608530,5.057,1812.5,1812.2,11.58779716]
[1745631608726,5.057,1812.5,1812.2,6.06978433]
[1745631608927,5.057,1812.5,1812.3,5.51762097]
[1745631609127,5.057,1812.5,1812.4,5.51754579]
[1745631609291,5.057,1812.5,1812.4,6.62106247]
[1745631609905,5.04886371,1812.5,1812.4,6.62106247]
[1745631612551,5.04886371,1812.5,1812.3,6.27222097]
[1745631612836,5.04886371,1812.5,1812.4,5.51754579]
[1745631614330,5.04886371,1812.5,1812.3,5.51769254]
[1745631614542,5.04886371,1812.5,1812.1,5.51827441]
[1745631614706,0.7559,1812.4,1812.1,5.51827441]
[1745631614910,6.8541155,1812.4,1811.9,5.51895825]
[1745631615242,6.8541155,1812.4,1811.8,6.0711744]
[1745631615243,5.51798309,1812.3,1811.8,6.07112483]
[1745631615443,5.51798309,1812.3,1811.8,5.51919652]
[1745631615660,5.51798309,1812.3,1811.8,5.5190983]
[1745631615858,6.85392778,1812.4,1811.5,0.8039]
[1745631615859,5.51848443,1812.1,1811.5,0.8039]
[1745631616155,5.013,1812.0,1811.7,5.51947995]
[1745631616359,5.013,1812.0,1811.5,0.8039]
[1745631616504,5.013,1812.0,1811.6,5.51974418]
[1745631616712,5.013,1812.0,1811.6,5.51985328]
[1745631617418,5.013,1812.0,1811.6,5.51974748]
[1745631618059,5.013,1812.0,1811.6,1.18437878]
[1745631618208,5.013,1812.0,1811.9,5.51906838]
[1745631619644,5.013,1812.0,1811.5,6.32414865]
[1745631619846,5.013,1812.0,1811.7,5.51950832]
[1745631620317,5.013,1812.0,1811.8,5.51937268]
[1745631620504,5.013,1812.0,1811.7,5.51949687]
[1745631620942,5.013,1812.0,1811.6,5.51980941]
[1745631621132,0.8213,1811.9,1811.5,5.52010177]
[1745631621330,0.8213,1811.9,1811.4,5.52044023]
[1745631621554,0.8213,1811.9,1811.6,5.51986518]
[1745631621851,0.8213,1811.9,1811.5,5.52005845]
[1745631621852,0.8213,1811.9,1811.5,11.04017603]
[1745631622054,0.8213,1811.9,1811.3,0.8065]
[1745631622055,0.8213,1811.9,1811.7,5.51939678]
[1745631622555,0.8213,1811.9,1811.6,5.51984613]
[1745631622940,6.34052657,1811.9,1811.4,5.52037094]
[1745631623143,6.34052657,1811.9,1811.3,5.52077294]
[1745631623144,5.51948119,1811.8,1811.3,5.52077294]
[1745631623345,6.15353385,1811.8,1811.3,5.52077294]
[1745631623540,6.3006986,1811.7,1811.2,5.52101201]
[1745631623758,5.014,1811.6,1811.2,5.52096306]
[1745631624560,5.014,1811.6,1811.2,5.52111732]
[1745631624730,6.14546784,1811.6,1811.1,5.52132019]
[1745631624937,6.14546784,1811.6,1810.7,0.8142]
[1745631624938,5.52102974,1811.3,1810.7,0.8142]
[1745631625260,5.52102974,1811.3,1810.3,6.5824]
[1745631625261,0.77597361,1811.1,1810.3,0.8142]
[1745631625460,5.52207021,1811.0,1810.4,5.5235506]
[1745631625619,5.52250279,1810.8,1810.3,6.33800258]
[1745631625818,5.015,1810.7,1810.3,6.33792426]
[1745631626018,5.015,1810.7,1810.3,5.52372426]
[1745631626620,5.015,1810.7,1810.1,0.82733834]
[1745631626820,5.015,1810.7,1810.5,5.52317797]
[1745631627133,4.98544362,1810.7,1810.3,5.52371343]
[1745631627457,4.98544362,1810.7,1810.5,5.52319794]
[1745631627458,5.48694362,1810.7,1810.5,5.52319794]
[1745631627758,4.98544362,1810.7,1810.6,5.52303103]
[1745631627954,4.98544362,1810.7,1810.5,5.52326954]
[1745631628129,4.98544362,1810.7,1810.6,5.52303103]
[1745631629727,4.98544362,1810.7,1810.3,0.8197]
[1745631629728,4.98544362,1810.7,1810.5,5.52332915]
[1745631629927,4.98544362,1810.7,1810.5,5.5233314]
[1745631630369,4.98544362,1810.7,1810.5,5.52320659]
[1745631630668,4.98544362,1810.7,1810.6,5.52303103]
[1745631632347,4.98544362,1810.7,1810.6,6.34273103]
[1745631632669,5.017,1811.1,1811.0,5.52177681]
[1745631632972,5.017,1811.1,1810.9,5.52201158]
[1745631633535,5.017,1811.1,1811.0,5.52181115]
[1745631635464,5.017,1811.1,1811.0,6.34151115]
[1745631635767,5.017,1811.1,1811.0,7.52786342]
[1745631637578,4.987,1811.5,1811.4,5.52043181]
[1745631640068,4.987,1811.5,1811.3,5.52081826]
[1745631640069,4.987,1811.5,1811.3,5.52076116]
[1745631640248,4.987,1811.5,1811.2,5.52103493]
[1745631640449,4.987,1811.5,1811.3,11.04130909]
[1745631640762,5.4857,1811.5,1811.3,5.52064221]
[1745631640957,6.3121,1811.5,1811.2,5.52106481]
[1745631641187,6.3121,1811.5,1811.2,5.52100146]
[1745631641989,6.3121,1811.5,1811.4,5.5205918]
[1745631642184,6.3121,1811.5,1811.3,5.52088777]
[1745631642384,5.8134,1811.5,1811.4,5.5205918]
[1745631642754,5.8134,1811.5,1811.2,5.52105318]
[1745631642755,5.8134,1811.5,1811.3,5.52070207]
[1745631644267,5.8134,1811.5,1811.2,5.52105318]
[1745631644800,5.8134,1811.5,1811.2,11.04204062]
[1745631644995,5.8134,1811.5,1811.3,5.52089202]
[1745631645195,5.8134,1811.5,1811.2,5.52098744]
[1745631645495,6.39474,1811.5,1811.1,5.52138335]
[1745631645691,6.39474,1811.5,1811.0,5.52163114]
[1745631645895,6.39474,1811.5,1811.1,5.52138551]
[1745631646476,6.39474,1811.5,1810.8,6.27441548]
[1745631646477,6.39474,1811.5,1811.2,5.52095795]
[1745631646682,6.39474,1811.5,1811.2,5.52102403]
[1745631646883,0.639474,1811.4,1811.1,5.52136632]
[1745631647198,0.639474,1811.4,1811.1,5.52130198]
[1745631647609,0.639474,1811.4,1811.2,5.52096675]
[1745631647824,5.8134,1811.5,1810.9,5.5220374]
[1745631648117,5.8134,1811.5,1811.3,5.52065373]
[1745631648406,5.8134,1811.5,1811.4,5.5205918]
[1745631648603,5.8134,1811.5,1810.8,6.27437856]
[1745631648901,5.8134,1811.5,1811.2,5.5210784]
[1745631649267,5.8134,1811.5,1811.3,5.52088192]
[1745631650008,5.8134,1811.5,1811.1,5.52125354]
[1745631650363,11.33369481,1811.5,1811.1,5.52125354]
[1745631650883,11.33369481,1811.5,1810.9,5.52197162]
[1745631650884,11.33369481,1811.5,1811.0,5.52162081]
[1745631651075,1.13336948,1811.4,1811.0,5.52162081]
[1745631651291,1.13336948,1811.4,1811.0,11.04325962]
[1745631651597,1.13336948,1811.4,1811.0,5.52162081]
[1745631651794,1.13336948,1811.4,1811.1,5.52148644]
[1745631652216,6.65403399,1811.4,1810.8,0.752]
[1745631652404,0.6654034,1811.3,1811.0,5.52167895]
[1745631652587,1.13336948,1811.4,1811.0,5.52167895]
[1745631653506,5.52138893,1811.2,1810.8,5.52240532]
[1745631653669,5.52138893,1811.2,1810.7,5.52252824]
[1745631653670,4.987,1811.1,1810.7,5.52252824]
[1745631653869,4.987,1811.1,1810.7,11.04504323]
[1745631654105,4.987,1811.1,1810.7,5.52251499]
[1745631654304,11.55935431,1811.1,1810.7,5.52251499]
[1745631654667,0.8233,1811.0,1810.7,5.52251499]
[1745631655111,6.34512674,1811.0,1810.6,5.52291686]
[1745631655276,0.8233,1811.0,1810.5,5.52322035]
[1745631655468,6.34527201,1811.0,1810.5,11.04634868]
[1745631655828,8.1357639,1811.0,1810.5,5.52312833]
[1745631656163,8.1357639,1811.0,1810.5,11.04623539]
[1745631656362,8.1357639,1811.0,1810.5,5.52310706]
[1745631656592,2.61379189,1811.0,1810.6,5.52299168]
[1745631656797,8.13561567,1811.0,1810.6,5.52299168]
[1745631656992,0.81356157,1810.9,1810.6,5.52299168]
[1745631657195,6.33573201,1810.9,1810.3,6.83061741]
[1745631657408,0.8233,1810.8,1810.5,5.523134]
[1745631657607,4.987,1810.7,1810.5,5.523134]
[1745631657781,4.987,1810.7,1810.4,5.5234512]
[1745631658114,5.56803,1810.7,1810.3,5.52377668]
[1745631658276,5.56803,1810.7,1810.3,5.52375783]
[1745631658470,0.8233,1810.6,1810.3,5.52370016]
[1745631658804,0.8233,1810.6,1810.4,5.52362683]
[1745631659628,0.8233,1810.6,1810.5,5.52333609]
[1745631660433,0.8233,1810.6,1810.4,5.52344752]
[1745631660940,0.8233,1810.6,1810.3,5.52376243]
[1745631661139,4.987,1810.7,1810.5,5.52333609]
[1745631661309,4.987,1810.7,1810.5,5.52317465]
[1745631662194,4.987,1810.7,1810.4,5.52351159]
[1745631662395,4.987,1810.7,1810.3,5.52391747]
[1745631662651,4.987,1810.7,1810.2,5.52409548]
[1745631662794,4.987,1810.7,1810.1,0.7544]
[1745631662795,1.322,1810.6,1810.1,5.52436266]
[1745631662997,1.322,1810.6,1810.0,0.4079608]
[1745631663195,1.322,1810.6,1810.3,5.52383726]
[1745631663397,6.84522615,1810.6,1810.1,5.52437424]
[1745631663627,6.20795252,1810.5,1810.0,5.93269035]
[1745631663806,6.20795252,1810.5,1810.0,5.93262841]
[1745631664023,0.8233,1810.4,1810.0,5.93262841]
[1745631664223,4.988,1810.3,1810.0,0.4079608]
[1745631664537,4.988,1810.3,1810.1,11.04865262]
[1745631664750,4.988,1810.3,1810.2,5.52425146]
[1745631665122,1.95666948,1811.4,1810.6,5.52303103]
[1745631665439,0.8233,1811.4,1811.1,5.52143774]
[1745631665932,0.8233,1811.4,1811.0,5.52165016]
[1745631666232,0.8233,1811.4,1811.3,5.52089659]
[1745631666910,4.941,1811.6,1811.4,5.52055909]
[1745631667122,4.941,1811.6,1811.2,5.5210446]
[1745631667328,0.4941,1811.5,1811.2,5.52095579]
[1745631667536,0.4941,1811.5,1811.0,5.52180359]
[1745631667736,0.4941,1811.5,1811.3,5.5206828]
[1745631667941,0.4941,1811.5,1811.2,5.52101024]
[1745631668268,0.4941,1811.5,1811.2,5.52096507]
[1745631668549,0.4941,1811.5,1811.3,5.52075508]
[1745631668935,0.4941,1811.5,1811.2,11.04199998]
[1745631669143,0.4941,1811.5,1811.2,5.52096792]
[1745631669315,0.4941,1811.5,1811.0,5.52171157]
[1745631669515,0.4941,1811.5,1811.1,5.52128837]
[1745631669961,0.4941,1811.5,1811.2,5.52118092]
[1745631670282,0.7855,1811.4,1811.0,5.52164623]
[1745631670428,0.7855,1811.4,1811.1,5.52121219]
[1745631670636,0.7855,1811.4,1811.2,5.52117798]
[1745631670880,0.7855,1811.4,1811.2,5.52107707]
[1745631671449,0.7855,1811.4,1811.3,5.52089659]
[1745631671754,4.941,1811.6,1811.4,5.52054771]
[1745631672051,4.941,1811.6,1811.2,6.31794079]
[1745631672265,4.941,1811.6,1811.3,5.52070889]
[1745631672475,4.941,1811.6,1811.3,5.52068432]
[1745631672765,4.941,1811.6,1811.3,5.52089659]
[1745631672968,5.51365,1811.6,1811.2,11.83893278]
[1745631673263,5.51365,1811.6,1811.4,5.5204523]
[1745631673433,4.941,1811.6,1811.4,5.5204523]
[1745631673645,0.7855,1811.7,1811.5,5.52006387]
[1745631673850,5.7265,1811.7,1811.5,5.52006387]
[1745631677080,5.7265,1811.7,1811.5,5.52011601]
[1745631677364,4.941,1811.7,1811.5,5.52005756]
[1745631677571,4.941,1811.7,1811.2,6.31806996]
[1745631677874,4.941,1811.7,1811.5,5.51999687]
[1745631678038,4.941,1811.7,1811.2,0.7969]
[1745631678232,0.767,1811.6,1811.3,5.52070731]
[1745631679949,0.767,1811.6,1811.4,5.52056585]
[1745631680272,0.767,1811.6,1811.4,5.52059026]
[1745631680571,0.767,1811.6,1811.3,5.52074123]
[1745631682472,0.767,1811.6,1811.3,5.52088934]
[1745631683578,0.767,1811.6,1811.4,5.52051907]
[1745631683744,4.941,1811.7,1811.5,5.52028705]
[1745631685054,4.941,1811.7,1811.6,5.51998233]
[1745631685249,22.273,1812.2,1811.6,1.10402694]
[1745631685561,22.273,1812.2,1812.0,5.51857807]
[1745631685767,21.506,1812.2,1811.9,5.51893761]
[1745631686072,21.506,1812.2,1812.0,5.51855452]
[1745631686274,21.506,1812.2,1812.1,5.51845924]
[1745631686479,21.506,1812.2,1812.0,5.51857645]
[1745631686838,4.94,1812.2,1812.1,5.51845924]
[1745631688196,5.706,1812.6,1812.4,5.5173239]
[1745631688362,4.939,1812.6,1812.5,5.51724137]
[1745631688878,4.939,1812.6,1812.4,5.5174203]
[1745631689180,4.939,1812.6,1812.5,5.51724137]
[1745631690192,4.939,1812.6,1812.4,5.51744459]
[1745631690760,4.939,1812.6,1812.5,5.51724137]
[1745631691980,0.767,1812.8,1812.6,5.51677817]
[1745631692249,5.7512,1813.3,1813.0,5.51557474]
[1745631692561,5.7512,1813.3,1813.0,5.51570051]
[1745631692761,5.7512,1813.3,1813.1,5.51518574]
[1745631692762,4.938,1813.3,1813.1,5.51518574]
[1745631692971,4.938,1813.3,1813.2,5.5151114]
[1745631693363,4.938,1813.3,1813.2,7.43844111]
[1745631693548,5.7512,1813.7,1813.4,5.51440827]
[1745631694267,5.7512,1813.7,1813.3,5.51463421]
[1745631694467,11.26479137,1813.7,1813.3,5.51463421]
[1745631694688,5.7512,1813.7,1813.3,5.51463421]
[1745631695586,11.26498617,1813.7,1813.2,7.43828917]
[1745631695796,14.04715126,1813.7,1813.2,5.51495031]
[1745631695967,5.7512,1813.7,1813.3,5.51467149]
[1745631696162,5.7512,1813.7,1813.3,5.51457809]
[1745631696376,4.938,1813.7,1813.6,5.51389501]
[1745631698266,7.94,1814.0,1813.6,5.51389501]
[1745631699273,0.7963,1813.8,1813.4,5.5143001]
[1745631699477,0.7963,1813.8,1813.4,5.51428685]
[1745631699676,0.7963,1813.8,1813.5,5.51417293]
[1745631700398,0.7963,1813.8,1813.4,5.51449865]
[1745631700603,6.30941384,1813.9,1813.3,6.33498341]
[1745631700788,6.30941384,1813.9,1813.4,6.14774638]
[1745631700987,6.30941384,1813.9,1813.4,0.63349834]
[1745631701183,6.30941384,1813.9,1813.4,5.51450314]
[1745631701388,0.7963,1813.9,1813.5,5.51418904]
[1745631702208,0.7963,1813.9,1813.3,6.33496833]
[1745631702505,0.7963,1813.9,1813.6,5.51365185]
[1745631703419,0.7963,1813.9,1813.5,5.5140059]
[1745631703571,0.7963,1813.9,1813.5,11.02798091]
[1745631703772,4.94,1814.0,1813.6,5.51385942]
[1745631703968,4.94,1814.0,1813.4,5.51445817]
[1745631704312,4.94,1814.0,1813.8,5.51304931]
[1745631704513,0.8147,1813.9,1813.4,0.7972]
[1745631704739,0.8147,1813.9,1813.1,0.7972]
[1745631705018,0.8147,1813.9,1813.5,5.51400303]
[1745631705180,0.8147,1813.9,1813.2,5.5151114]
[1745631705377,0.8147,1813.9,1813.5,5.51398909]
[1745631705593,0.8147,1813.9,1813.6,5.51388729]
[1745631706102,0.8147,1813.9,1813.5,5.51403409]
[1745631706710,0.8147,1813.9,1813.6,5.51389416]
[1745631707115,0.8147,1813.9,1813.5,5.51400595]
[1745631707316,6.32775828,1813.9,1813.4,5.51426731]
[1745631707517,6.32775828,1813.9,1813.5,5.5141804]
[1745631707700,6.32775828,1813.9,1813.1,9.3125546]
[1745631707701,0.8072,1813.8,1813.1,6.31261146]
[1745631707882,0.8072,1813.8,1813.4,5.51434699]
[1745631708516,6.32049569,1813.8,1813.3,5.51465206]
[1745631708909,5.51365577,1813.7,1813.2,5.51486454]
[1745631709202,4.937,1813.6,1813.2,5.51486454]
[1745631709401,4.937,1813.6,1813.3,5.51469037]
[1745631710008,4.937,1813.6,1813.2,5.5151114]
[1745631710213,4.937,1813.6,1813.4,5.51430505]
[1745631711915,4.937,1813.6,1813.4,11.02857983]
[1745631712241,5.7142,1814.0,1813.7,5.51342758]
[1745631712582,5.7142,1814.0,1813.6,5.51376014]
[1745631713029,5.7142,1814.0,1813.6,5.51378524]
[1745631713226,5.7142,1814.0,1813.7,5.51352487]
[1745631714136,5.7142,1814.0,1813.6,5.5137294]
[1745631714420,12.34975036,1814.0,1813.5,6.33964706]
[1745631714927,6.83687099,1814.0,1813.6,5.51388059]
[1745631715822,12.3496011,1814.0,1813.5,5.51398591]
[1745631717624,12.3496011,1814.0,1813.5,11.02796028]
[1745631717825,5.7142,1814.0,1813.5,5.51407016]
[1745631718124,5.7142,1814.0,1813.6,5.51377108]
[1745631718625,11.22691814,1814.0,1813.5,5.51401584]
[1745631719121,11.22691814,1814.0,1813.5,11.02798673]
[1745631719314,11.22691814,1814.0,1813.5,5.51397089]
[1745631720027,11.22691814,1814.0,1813.5,5.5139571]
[1745631720229,12.90085867,1814.0,1813.5,5.5139571]
[1745631721429,7.38814053,1814.0,1813.7,5.51356823]
[1745631721800,5.7142,1814.0,1813.6,5.51373024]
[1745631722539,5.7142,1814.0,1813.6,5.51366544]
[1745631723813,0.791,1813.7,1813.3,5.51479422]
[1745631724599,10.45110177,1813.6,1813.1,5.51526361]
[1745631724798,0.791,1813.4,1813.0,5.51555853]
[1745631725135,0.791,1813.4,1813.0,1.83680539]
[1745631725445,6.30570838,1813.4,1812.9,5.51583085]
[1745631725798,5.51557837,1813.1,1812.6,6.62024558]
[1745631725995,5.51657863,1812.8,1812.2,5.51791636]
[1745631726231,5.51657863,1812.8,1812.3,5.51768514]
[1745631726529,6.28638381,1813.0,1812.3,5.51770747]
[1745631726735,5.51615634,1812.9,1812.4,5.51752931]
[1745631726920,5.51615634,1812.9,1812.1,0.7541]
[1745631727091,0.8222,1812.8,1812.1,0.7541]
[1745631727309,6.33961006,1812.5,1812.0,5.51855923]
[1745631727510,4.881,1812.4,1812.0,5.51855923]
[1745631728138,4.881,1812.4,1811.9,5.51890113]
[1745631728487,4.881,1812.4,1812.0,5.51867594]
[1745631728815,4.881,1812.4,1812.0,6.62243365]
[1745631729161,0.8222,1812.1,1811.7,5.5195596]
[1745631729306,0.8222,1812.1,1811.6,11.03963945]
[1745631729307,6.34077591,1812.1,1811.6,11.03963945]
[1745631729512,0.8222,1812.1,1811.7,5.5194093]
[1745631729809,4.882,1812.0,1811.7,5.5194082]
[1745631730037,4.882,1812.0,1811.8,5.51924022]
[1745631730651,4.882,1812.0,1811.8,5.51918017]
[1745631731064,4.882,1812.0,1811.9,5.51906838]
[1745631731951,4.883,1812.3,1811.9,5.51906838]
[1745631732284,4.883,1812.3,1812.0,5.51873231]
[1745631733583,4.883,1812.3,1811.9,5.51883204]
[1745631733786,4.883,1812.3,1812.0,5.51860172]
[1745631734819,4.883,1812.3,1812.1,5.51840956]
[1745631735981,4.883,1812.3,1812.1,5.51823832]
[1745631736502,4.883,1812.3,1812.2,5.51815472]
[1745631738059,4.883,1812.3,1812.1,5.51826523]
[1745631739098,4.883,1812.3,1811.9,6.33550634]
[1745631739301,0.7685,1812.2,1811.9,5.51890634]
[1745631739600,0.7685,1812.2,1812.0,5.51872407]
[1745631740605,0.7685,1812.2,1812.0,11.03724898]
[1745631740918,4.883,1812.3,1812.0,5.51856761]
[1745631741103,4.883,1812.3,1811.9,5.51882735]
[1745631741305,10.96613321,1812.3,1811.8,5.51923802]
[1745631741514,10.96613321,1812.3,1811.8,11.03838702]
[1745631741678,5.44815,1812.3,1811.9,5.51893516]
[1745631742009,5.44815,1812.3,1812.0,5.51859456]
[1745631742895,5.44815,1812.3,1811.9,5.51889165]
[1745631743400,5.44815,1812.3,1812.0,5.51856123]
[1745631743606,4.883,1812.3,1811.7,6.30774366]
[1745631743810,4.883,1812.3,1811.7,6.30753105]
[1745631743981,4.883,1812.3,1812.2,5.51815472]
[1745631745284,0.827,1812.6,1812.1,6.29709435]
[1745631745491,5.711,1812.6,1812.4,5.51724553]
[1745631746041,4.884,1812.6,1812.5,5.51724137]
[1745631746254,0.827,1812.9,1812.8,5.51632833]
[1745631746546,4.884,1812.9,1812.8,5.51632833]
[1745631746905,4.884,1812.9,1812.7,5.51658743]
[1745631746906,4.884,1812.9,1812.7,5.51647733]
[1745631747104,4.884,1812.9,1812.8,5.51632833]
[1745631748014,4.884,1812.9,1812.7,5.5164442]
[1745631748238,4.884,1812.9,1812.8,5.51632833]
[1745631748416,4.884,1812.9,1812.7,5.51648731]
[1745631749341,5.9258129,1813.3,1812.9,5.51588791]
[1745631749342,4.884,1813.3,1812.9,5.51588791]
[1745631749703,4.884,1813.3,1812.9,5.51582012]
[1745631749909,4.884,1813.3,1812.9,5.51601676]
[1745631750129,0.4884,1813.2,1812.9,5.51601676]
[1745631750507,6.00352362,1813.2,1812.8,5.51615201]
[1745631750907,0.4884,1813.2,1812.9,5.51594801]
[1745631751108,0.4884,1813.2,1812.8,5.51615092]
[1745631751640,0.4884,1813.2,1812.7,5.51651216]
[1745631751847,0.7876,1813.1,1812.7,5.51651216]
[1745631752047,6.98214755,1813.1,1812.6,5.51680572]
[1745631752215,1.46672396,1813.1,1812.5,6.29582815]
[1745631752543,6.3032039,1813.1,1812.6,5.51692613]
[1745631753061,5.51608268,1812.9,1812.5,5.51719531]
[1745631753239,4.883,1812.8,1812.5,5.51719531]
[1745631753412,4.883,1812.8,1812.6,5.51692566]
[1745631754080,4.883,1812.8,1812.7,5.51663264]
[1745631754576,4.883,1812.8,1812.6,5.51676485]
[1745631755175,4.883,1812.8,1812.6,5.51669068]
[1745631755962,4.883,1812.8,1812.4,5.51729132]
[1745631756161,4.883,1812.8,1812.5,5.51711416]
[1745631756385,4.883,1812.8,1812.4,5.517344]
[1745631756951,4.883,1812.8,1812.4,5.5173142]
[1745631757188,4.883,1812.8,1812.4,5.51731016]
[1745631757598,4.883,1812.8,1812.4,5.51729982]
[1745631757808,10.39934537,1812.8,1812.4,5.51729982]
[1745631758776,4.883,1812.8,1812.5,5.51709978]
[1745631758979,6.28604912,1812.7,1812.2,5.51787284]
[1745631759309,0.7693,1812.7,1812.3,5.51778197]
[1745631759609,0.7693,1812.7,1812.3,5.51763909]
[1745631759979,0.7693,1812.7,1812.3,5.51762368]
[1745631760313,5.51729009,1812.5,1812.1,5.51831704]
[1745631760511,11.14195561,1812.4,1811.9,5.51906838]
[1745631760667,5.6243,1812.4,1812.0,5.5185355]
[1745631760868,5.6243,1812.4,1812.1,5.51833412]
[1745631761298,5.6243,1812.4,1812.0,5.5185355]
[1745631761501,11.14186615,1812.4,1812.0,5.5185355]
[1745631761665,5.6243,1812.4,1812.0,5.5185355]
[1745631761863,5.6243,1812.4,1812.1,5.5184134]
[1745631762297,5.6243,1812.4,1812.0,5.51847726]
[1745631762499,11.14187927,1812.4,1812.0,5.51847726]
[1745631762896,5.6243,1812.4,1812.0,5.51847726]
[1745631763114,5.6243,1812.4,1811.9,5.518969]
[1745631763115,11.14205187,1812.4,1811.9,5.5189598]
[1745631763264,6.63211653,1812.3,1811.8,5.51922401]
[1745631763464,5.51852112,1812.1,1811.7,5.51954327]
[1745631763699,5.51852112,1812.1,1811.6,5.51982109]
[1745631763897,4.855,1812.0,1811.6,5.51982109]
[1745631764167,6.28859467,1811.9,1811.4,5.52045478]
[1745631764973,0.7693,1811.9,1811.3,5.5338549]
[1745631765171,0.7693,1811.9,1811.4,5.52056029]
[1745631765413,0.7693,1811.9,1811.5,5.52017533]
[1745631766222,6.28851227,1811.9,1811.4,5.52043502]
[1745631766437,0.62885123,1811.8,1811.4,5.52043502]
[1745631766712,6.28851227,1811.9,1811.5,5.52025048]
[1745631767017,0.7693,1811.9,1811.5,5.52025048]
[1745631768506,6.28838517,1811.9,1811.5,5.52025048]
[1745631768735,5.51941484,1811.8,1811.4,5.5204261]
[1745631769022,6.28855063,1811.9,1811.4,5.5204261]
[1745631769199,8.05853112,1811.9,1811.4,5.5204261]